fUSD/lending_fUSD_20240414
["ID","MTS","AMOUNT","RATE_DAILY","PERIOD"]
[322578079,1713081058959,-165.96780529,0.00047128,30]
[322578080,1713081058970,-332.93477396,0.00047165,30]
[322578081,1713081058980,-154.99801969,0.00047166,30]
[322578082,1713081058990,-171.20687448,0.00047181,30]
[322578083,1713081059000,-157.041513,0.00047198,78]
[322578084,1713081059010,-505.46474775,0.00047228,30]
[322578085,1713081059020,-500.0,0.00047237,4]
[322578086,1713081059029,-500.0,0.00047237,4]
[322578087,1713081059039,-500.0,0.00047237,4]
[322578088,1713081059048,-500.0,0.00047237,4]
[322578089,1713081059058,-500.0,0.00047237,4]
[322578090,1713081059067,-500.0,0.00047237,4]
[322578091,1713081059077,-500.0,0.00047237,4]
[322578092,1713081059089,-500.0,0.00047237,4]
[322578093,1713081059099,-500.0,0.00047237,4]
[322578094,1713081059108,-500.0,0.00047237,4]
[322578095,1713081059118,-500.0,0.00047237,4]
[322578096,1713081059129,-500.0,0.00047237,4]
[322578097,1713081059138,-192.0,0.00047237,4]
[322578098,1713081059148,-500.0,0.00047237,4]
[322578099,1713081059158,-200.0,0.00047237,4]
[322578100,1713081059383,-154.99801969,0.00047269,30]
[322578101,1713081059401,-164.28918671,0.00047321,2]
[322578102,1713081059412,-32000.0,0.00047357,25]
[322578103,1713081059422,-155.63354506,0.00047378,65]
[322578104,1713081059433,-256.13487886,0.00047379,30]
[322578105,1713081059443,-152.27,0.00047381,2]
[322578106,1713081059452,-256.13487886,0.00047389,30]
[322578107,1713081059462,-156.50584305,0.00047391,30]
[322578108,1713081059472,-156.46926548,0.00047415,30]
[322578109,1713081059481,-156.50584305,0.00047429,30]
[322578110,1713081059490,-150.0,0.00047437,120]
[322578111,1713081059500,-156.3106271,0.00047439,30]
[322578112,1713081059510,-2500.0,0.00047452,120]
[322578113,1713081059520,-6825.0,0.00047463,7]
[322578114,1713081059529,-154.99801969,0.0004747,30]
[322578115,1713081059539,-332.93477396,0.00047485,30]
[322578116,1713081059549,-157.041507,0.00047498,82]
[322578117,1713081059559,-150.0,0.000475,9]
[322578118,1713081059569,-332.93477396,0.00047561,30]
[322578119,1713081059579,-157.64176833,0.00047606,30]
[322578120,1713081059590,-157.32897233,0.00047676,30]
[322578121,1713081059599,-156.3106271,0.00047748,30]
[322578122,1713081059608,-242.71617137,0.00047799,30]
[322578123,1713081059617,-2350.0,0.000478,30]
[322578124,1713081059627,-5350.0,0.000478,31]
[322578125,1713081059637,-14565.12841237,0.000478,60]
[322578126,1713081059646,-171.20687448,0.00047809,30]
[322578127,1713081059657,-487.27,0.00047822,2]
[322578128,1713081059666,-154.38291623,0.00047849,30]
[322578129,1713081059675,-568.47,0.00047869,30]
[322578130,1713081059685,-568.47,0.00047869,30]
[322578131,1713081059695,-568.47,0.00047869,30]
[322578132,1713081059704,-568.47,0.00047869,30]
[322578133,1713081059713,-156.88723511,0.00047895,30]
[322578134,1713081059723,-154.99801969,0.00047903,30]
[322578135,1713081059732,-256.13487886,0.00047932,30]
[322578136,1713081059742,-1000.0,0.00047945,2]
[322578137,1713081059751,-256.13487886,0.00047998,30]
[322578138,1713081059760,-5665.03070877,0.00047999,3]
[322578139,1713081059770,-100000.0,0.00048,48]
[322578140,1713081059780,-750.0,0.00048,120]
[322578141,1713081059792,-250.0,0.00048,10]
[322578142,1713081059802,-258.9,0.00048,120]
[322578143,1713081059811,-500.0,0.00048,30]
[322578144,1713081059822,-151.0,0.00048,120]
[322578145,1713081059831,-702.59,0.00048,2]
[322578146,1713081059845,-1000.0,0.00048,2]
[322578147,1713081059854,-98950.0,0.00048,120]
[322578148,1713081059865,-7131.24838967,0.00048,33]
[322578149,1713081059874,-1000.0,0.00048,120]
[322578150,1713081059884,-1000.0,0.00048,120]
[322578151,1713081059893,-1000.0,0.00048,60]
[322578152,1713081059903,-201.886338,0.00048,25]
[322578153,1713081059913,-1000.0,0.00048,60]
[322578154,1713081059922,-150.0,0.00048,9]
[322578155,1713081059933,-1000.0,0.00048,30]
[322578156,1713081059942,-218.222334,0.00048,14]
[322578157,1713081059952,-218.222334,0.00048,14]
[322578158,1713081059961,-153.142966,0.00048,14]
[322578159,1713081059970,-151.0,0.00048,14]
[322578160,1713081059980,-274.364586,0.00048,14]
[322578161,1713081059989,-151.0,0.00048,14]
[322578162,1713081059998,-274.364586,0.00048,14]
[322578163,1713081060007,-153.145968,0.00048,7]
[322578164,1713081060017,-164.915614,0.00048,14]
[322578165,1713081060026,-164.915614,0.00048,14]
[322578166,1713081060035,-151.0,0.00048,14]
[322578167,1713081060045,-151.0,0.00048,14]
[322578168,1713081060055,-151.0,0.00048,14]
[322578169,1713081060064,-151.0,0.00048,14]
[322578170,1713081060074,-229.18436139,0.00048017,7]
[322578171,1713081060083,-265.29891794,0.00048017,7]
[322578172,1713081060096,-228.51832373,0.00048017,7]
[322578173,1713081060105,-156.83100348,0.00048029,30]
[322578174,1713081060115,-256.13487886,0.00048029,30]
[322578175,1713081060124,-162.68783336,0.00048038,30]
[322578176,1713081060134,-256.13487886,0.00048073,30]
[322578177,1713081060143,-171.20687448,0.00048103,30]
[322578178,1713081060153,-568.47,0.00048142,30]
[322578179,1713081060162,-568.47,0.00048142,30]
[322578180,1713081060171,-332.93477396,0.0004816,30]
[322578181,1713081060181,-154.99801969,0.00048173,30]
[322578182,1713081060191,-157.041513,0.00048198,81]
[322578183,1713081060200,-1052.0,0.00048219,30]
[322578184,1713081060210,-153.57672703,0.00048225,30]
[322578185,1713081060219,-289.82932389,0.00048226,30]
[322578186,1713081060228,-289.82932389,0.00048231,30]
[322578187,1713081060237,-153.57672703,0.00048294,30]
[322578188,1713081060246,-639.0,0.00048306,30]
[322578189,1713081060255,-569.0,0.00048306,30]
[322578190,1713081060264,-152.27,0.00048348,2]
[322578191,1713081060274,-242.71617137,0.00048409,30]
[322578192,1713081060283,-166.84086597,0.0004841,30]
[322578193,1713081060292,-568.47,0.00048415,30]
[322578194,1713081060301,-568.47,0.00048415,30]
[322578195,1713081060311,-155.46548869,0.00048428,30]
[322578196,1713081060320,-242.71617137,0.00048465,30]
[322578197,1713081060329,-157.041507,0.00048498,85]
[322578198,1713081060342,-150.0,0.000485,9]
[322578199,1713081060350,-171.20687448,0.00048511,30]
[322578200,1713081060361,-203.0,0.0004852,30]
[322578201,1713081060370,-154.38291629,0.00048527,30]
[322578202,1713081060380,-318.8130496,0.0004854,30]
[322578203,1713081060390,-256.13487886,0.00048574,30]
[322578204,1713081060400,-258.9,0.00048603,120]
[322578205,1713081060409,-156.46926548,0.00048633,30]
[322578206,1713081060420,-568.47,0.00048689,30]
[322578207,1713081060429,-568.47,0.00048689,30]
[322578208,1713081060438,-156.46926548,0.00048723,30]
[322578209,1713081060447,-256.13487886,0.00048746,30]
[322578210,1713081060456,-639.0,0.00048804,30]
[322578211,1713081060465,-569.0,0.00048804,30]
[322578212,1713081060475,-332.93477396,0.00048844,30]
[322578213,1713081060484,-249.7208832,0.00048847,2]
[322578214,1713081060493,-20289.2910329,0.00048847,2]
[322578215,1713081060503,-1493.6671433,0.00048847,2]
[322578216,1713081060513,-4070.6707455,0.00048847,2]
[322578217,1713081060522,-1562.5172529,0.00048847,2]
[322578218,1713081060532,-3373.5047116,0.00048847,2]
[322578219,1713081060542,-151.471127,0.00048879,14]
[322578220,1713081060551,-151.0,0.00048879,14]
[322578221,1713081060560,-151.0,0.00048879,14]
[322578222,1713081060570,-532.624572,0.00048879,14]
[322578223,1713081060579,-419.417051,0.00048879,14]
[322578224,1713081060591,-532.624572,0.00048879,14]
[322578225,1713081060600,-151.0,0.00048879,14]
[322578226,1713081060609,-419.417051,0.00048879,14]
[322578227,1713081060618,-167.211154,0.00048879,14]
[322578228,1713081060628,-151.0,0.00048879,14]
[322578229,1713081060637,-167.211154,0.00048879,14]
[322578230,1713081060646,-431.50708,0.00048879,14]
[322578231,1713081060655,-431.50708,0.00048879,14]
[322578232,1713081060664,-151.0,0.00048879,14]
[322578233,1713081060673,-151.0,0.00048879,14]
[322578234,1713081060682,-151.0,0.00048879,14]
[322578235,1713081060691,-151.0,0.00048879,14]
[322578236,1713081060700,-151.0,0.00048879,14]
[322578237,1713081060709,-151.0,0.00048879,14]
[322578238,1713081060718,-155.064629,0.00048879,14]
[322578239,1713081060727,-891661.13184582,0.0004888,7]
[322578240,1713081060736,-28821.45255407,0.0004888,7]
[322578241,1713081060745,-167.186685,0.0004888,14]
[322578242,1713081060754,-177.952692,0.0004888,14]
[322578243,1713081060763,-177.952692,0.0004888,14]
[322578244,1713081060772,-154.482494,0.0004888,14]
[322578245,1713081060782,-151.0,0.0004888,14]
[322578246,1713081060793,-151.0,0.0004888,14]
[322578247,1713081060806,-151.0,0.0004888,14]
[322578248,1713081060815,-151.0,0.0004888,14]
[322578249,1713081060826,-151.0,0.0004888,14]
[322578250,1713081060838,-258.098084,0.0004888,14]
[322578251,1713081060849,-151.0,0.0004888,14]
[322578252,1713081060858,-244.296489,0.0004888,14]
[322578253,1713081060867,-151.0,0.0004888,7]
[322578254,1713081060878,-786.259033,0.0004888,14]
[322578255,1713081060887,-786.259033,0.0004888,14]
[322578256,1713081060897,-195.804325,0.0004888,14]
[322578257,1713081060906,-151.0,0.0004888,14]
[322578258,1713081060915,-195.804325,0.0004888,14]
[322578259,1713081060924,-151.0,0.0004888,14]
[322578260,1713081060933,-151.0,0.0004888,14]
[322578261,1713081060942,-151.0,0.0004888,14]
[322578262,1713081060952,-151.933996,0.0004888,14]
[322578263,1713081060961,-1968.216409,0.0004888,14]
[322578264,1713081060971,-1968.216409,0.0004888,14]
[322578265,1713081060980,-739.408894,0.0004888,14]
[322578266,1713081060990,-151.0,0.0004888,14]
[322578267,1713081061001,-739.408894,0.0004888,14]
[322578268,1713081061011,-151.0,0.0004888,14]
[322578269,1713081061020,-297.814214,0.0004888,14]
[322578270,1713081061030,-297.814214,0.0004888,14]
[322578271,1713081061041,-332.93477396,0.00048888,30]
[322578272,1713081061050,-1016.7,0.000489,60]
[322578273,1713081061060,-256.13487886,0.00048902,30]
[322578274,1713081061070,-568.47,0.00048962,30]
[322578275,1713081061079,-568.47,0.00048962,30]
[322578276,1713081061093,-256.13487886,0.00048974,30]
[322578277,1713081061102,-153.57672703,0.00048986,30]
[322578278,1713081061111,-2282.63,0.00048986,15]
[322578279,1713081061120,-100000.0,0.00049,49]
[322578280,1713081061130,-3425.2541626,0.00049,120]
[322578281,1713081061139,-60611.98707469,0.00049,5]
[322578282,1713081061149,-489.9,0.00049,2]
[322578283,1713081061158,-423.40893124,0.00049,120]
[322578284,1713081061167,-730.21253019,0.00049,120]
[322578285,1713081061176,-650.0,0.00049,120]
[322578286,1713081061186,-250.0,0.00049,10]
[322578287,1713081061195,-1000.0,0.00049,120]
[322578288,1713081061205,-500.0,0.00049,120]
[322578289,1713081061214,-4031.0,0.00049,120]
[322578290,1713081061224,-296757.57722475,0.00049,30]
[322578291,1713081061233,-155.59805784,0.00049,60]
[322578292,1713081061242,-500.0,0.00049,30]
[322578293,1713081061252,-1000.0,0.00049,2]
[322578294,1713081061261,-40898.89236679,0.00049,120]
[322578295,1713081061270,-150.89484681,0.00049,25]
[322578296,1713081061279,-30000.0,0.00049,2]
[322578297,1713081061289,-2003.27130955,0.00049,120]
[322578298,1713081061299,-592.0,0.00049,60]
[322578299,1713081061308,-1000.0,0.00049,120]
[322578300,1713081061317,-150.0,0.00049,9]
[322578301,1713081061327,-1200.0,0.00049,3]
[322578302,1713081061340,-332.93477396,0.00049042,30]
[322578303,1713081061350,-150.0,0.00049063,120]
[322578304,1713081061360,-289.82932389,0.00049072,30]
[322578305,1713081061369,-242.71617137,0.00049096,30]
[322578306,1713081061378,-150.0,0.00049097,120]
[322578307,1713081061389,-157.64176833,0.00049098,30]
[322578308,1713081061398,-150.0,0.00049177,120]
[322578309,1713081061408,-314.041507,0.00049198,84]
[322578310,1713081061417,-256.13487886,0.00049202,30]
[322578311,1713081061427,-258.9,0.00049205,120]
[322578312,1713081061436,-568.47,0.00049235,60]
[322578313,1713081061446,-568.47,0.00049235,60]
[322578314,1713081061455,-6925.31616957,0.00049268,2]
[322578315,1713081061465,-154.99801969,0.00049285,30]
[322578316,1713081061474,-256.13487886,0.00049287,30]
[322578317,1713081061484,-639.0,0.00049302,30]
[322578318,1713081061493,-569.0,0.00049302,30]
[322578319,1713081061502,-242.71617137,0.00049311,30]
[322578320,1713081061512,-522.50576722,0.00049315,120]
[322578321,1713081061522,-597.05,0.00049315,120]
[322578322,1713081061531,-597.05,0.00049315,120]
[322578323,1713081061541,-597.05,0.00049315,120]
[322578324,1713081061552,-597.05,0.00049315,120]
[322578325,1713081061562,-597.05,0.00049315,120]
[322578326,1713081061573,-597.05,0.00049315,120]
[322578327,1713081061583,-597.05,0.00049315,120]
[322578328,1713081061597,-597.05,0.00049315,120]
[322578329,1713081061606,-597.05,0.00049315,120]
[322578330,1713081061616,-597.05,0.00049315,120]
[322578331,1713081061626,-597.05,0.00049315,120]
[322578332,1713081061636,-597.05,0.00049315,120]
[322578333,1713081061646,-597.05,0.00049315,120]
[322578334,1713081061659,-597.05,0.00049315,120]
[322578335,1713081061669,-597.05,0.00049315,120]
[322578336,1713081061679,-597.05,0.00049315,120]
[322578337,1713081061689,-597.05,0.00049315,120]
[322578338,1713081061698,-597.05,0.00049315,120]
[322578339,1713081061708,-597.05,0.00049315,120]
[322578340,1713081061718,-597.05,0.00049315,120]
[322578341,1713081061728,-597.05,0.00049315,120]
[322578342,1713081061738,-597.05,0.00049315,120]
[322578343,1713081061747,-597.05,0.00049315,120]
[322578344,1713081061757,-597.19057246,0.00049315,120]
[322578345,1713081061766,-3000.0,0.00049315,120]
[322578346,1713081061776,-666.0,0.00049315,2]
[322578347,1713081061786,-1000.0,0.00049315,60]
[322578348,1713081061797,-152.27,0.00049315,2]
[322578349,1713081061808,-171.20687448,0.0004934,30]
[322578350,1713081061817,-332.93477396,0.0004936,30]
[322578351,1713081061827,-154.99801969,0.00049367,30]
[322578352,1713081061838,-600.0,0.00049386,90]
[322578353,1713081061849,-500.0,0.00049386,90]
[322578354,1713081061859,-151.0,0.00049397,120]
[322578355,1713081061868,-9446.46374728,0.000494,2]
[322578356,1713081061878,-154.99801969,0.00049422,30]
[322578357,1713081061888,-154.99801969,0.00049425,30]
[322578358,1713081061897,-157.32897233,0.0004945,30]
[322578359,1713081061907,-3000.0,0.00049452,120]
[322578360,1713081061916,-14999.99999902,0.0004949,10]
[322578361,1713081061926,-157.041507,0.00049498,88]
[322578362,1713081061939,-191.42832809,0.000495,120]
[322578363,1713081061949,-4950.16350386,0.000495,30]
[322578364,1713081061958,-19472.41889907,0.000495,120]
[322578365,1713081061969,-150.0,0.000495,10]
[322578366,1713081061979,-568.47,0.00049508,60]
[322578367,1713081061988,-568.47,0.00049508,60]
[322578368,1713081061998,-1052.0,0.00049589,60]
[322578369,1713081062007,-3000.0,0.00049589,120]
[322578370,1713081062016,-289.82932389,0.00049589,30]
[322578371,1713081062025,-171.20687448,0.00049632,30]
[322578372,1713081062035,-600.0,0.0004966,90]
[322578373,1713081062044,-9717.624195,0.0004968,120]
[322578374,1713081062054,-16912.76,0.0004968,120]
[322578375,1713081062064,-242.71617137,0.00049685,30]
[322578376,1713081062073,-3000.0,0.00049726,120]
[322578377,1713081062083,-166.87212805,0.0004974,30]
[322578378,1713081062095,-568.47,0.00049781,60]
[322578379,1713081062105,-568.47,0.00049781,60]
[322578380,1713081062115,-157.041507,0.00049798,85]
[322578381,1713081062125,-193.15626231,0.000498,30]
[322578382,1713081062134,-639.0,0.000498,30]
[322578383,1713081062144,-10206.08361457,0.000498,120]
[322578384,1713081062153,-544.47693667,0.000498,30]
[322578385,1713081062162,-569.0,0.000498,30]
[322578386,1713081062171,-1395.99981146,0.000498,30]
[322578387,1713081062180,-153.32,0.000498,6]
[322578388,1713081062190,-153.32,0.000498,6]
[322578389,1713081062199,-153.32,0.000498,6]
[322578390,1713081062208,-153.32,0.000498,6]
[322578391,1713081062219,-153.32,0.000498,6]
[322578392,1713081062228,-153.32,0.000498,6]
[322578393,1713081062238,-153.32,0.000498,6]
[322578394,1713081062247,-153.32,0.000498,6]
[322578395,1713081062256,-6980.2,0.000498,6]
[322578396,1713081062267,-6980.2,0.000498,6]
[322578397,1713081062277,-6980.2,0.000498,6]
[322578398,1713081062287,-6980.2,0.000498,6]
[322578399,1713081062296,-6980.2,0.000498,6]
[322578400,1713081062306,-6980.2,0.000498,6]
[322578401,1713081062316,-6980.2,0.000498,6]
[322578402,1713081062326,-6980.2,0.000498,6]
[322578403,1713081062340,-6980.2,0.000498,6]
[322578404,1713081062350,-6980.2,0.000498,6]
[322578405,1713081062360,-6980.2,0.000498,6]
[322578406,1713081062369,-6980.2,0.000498,6]
[322578407,1713081062379,-6980.2,0.000498,6]
[322578408,1713081062390,-6980.2,0.000498,6]
[322578409,1713081062399,-6980.2,0.000498,6]
[322578410,1713081062409,-6980.2,0.000498,6]
[322578411,1713081062418,-6980.2,0.000498,6]
[322578412,1713081062428,-6980.2,0.000498,6]
[322578413,1713081062437,-6980.2,0.000498,6]
[322578414,1713081062447,-6980.2,0.000498,6]
[322578415,1713081062456,-258.9,0.00049808,120]
[322578416,1713081062466,-156.83100348,0.00049819,30]
[322578417,1713081062475,-4826.8,0.00049829,117]
[322578418,1713081062485,-3000.0,0.00049863,120]
[322578419,1713081062495,-157.64176833,0.00049884,30]
[322578420,1713081062506,-256.13487886,0.00049907,30]
[322578421,1713081062517,-500.0,0.00049934,90]
[322578422,1713081062528,-156.50584305,0.00049979,30]
[322578423,1713081062537,-12141.20582866,0.00049999,2]
[322578424,1713081062547,-38258.16779892,0.00049999,2]
[322578425,1713081062556,-100000.0,0.0005,50]
[322578426,1713081062565,-1540.0,0.0005,58]
[322578427,1713081062575,-1540.0,0.0005,58]
[322578428,1713081062584,-1540.0,0.0005,58]
[322578429,1713081062596,-1540.0,0.0005,58]
[322578430,1713081062606,-435.0,0.0005,58]
[322578431,1713081062616,-430.9802824,0.0005,28]
[322578432,1713081062900,-335.96588224,0.0005,30]
[322578433,1713081062912,-840.30244237,0.0005,2]
[322578434,1713081062922,-1452.22941379,0.0005,30]
[322578435,1713081062933,-1036.24332463,0.0005,120]
[322578436,1713081062942,-263.99961251,0.0005,120]
[322578437,1713081062952,-2664.91162487,0.0005,120]
[322578438,1713081062962,-158.86135687,0.0005,120]
[322578439,1713081062971,-10000.0,0.0005,30]
[322578440,1713081062981,-1000.0,0.0005,2]
[322578441,1713081062990,-5278.82960518,0.0005,120]
[322578442,1713081062999,-414.67529738,0.0005,120]
[322578443,1713081063009,-8953.93469856,0.0005,120]
[322578444,1713081063018,-550.0,0.0005,120]
[322578445,1713081063027,-3200.0,0.0005,4]
[322578446,1713081063036,-250.0,0.0005,30]
[322578447,1713081063046,-2185.22955554,0.0005,120]
[322578448,1713081063056,-2464.0,0.0005,30]
[322578449,1713081063066,-4987.85435947,0.0005,2]
[322578450,1713081063075,-2000.0,0.0005,90]
[322578451,1713081063085,-1900.0,0.0005,90]
[322578452,1713081063097,-10000.0,0.0005,30]
[322578453,1713081063106,-5000.93663063,0.0005,120]
[322578454,1713081063115,-1235.8,0.0005,30]
[322578455,1713081063125,-986.8,0.0005,30]
[322578456,1713081063134,-22065.12726873,0.0005,120]
[322578457,1713081063144,-58873.24217113,0.0005,30]
[322578458,1713081063153,-3343.9901356,0.0005,120]
[322578459,1713081063162,-1923.12758553,0.0005,120]
[322578460,1713081063171,-2500.0,0.0005,120]
[322578461,1713081063181,-2500.0,0.0005,120]
[322578462,1713081063190,-2500.0,0.0005,120]
[322578463,1713081063199,-2500.0,0.0005,120]
[322578464,1713081063208,-2500.0,0.0005,120]
[322578465,1713081063218,-2500.0,0.0005,120]
[322578466,1713081063227,-2500.0,0.0005,120]
[322578467,1713081063236,-2500.0,0.0005,120]
[322578468,1713081063245,-1901.04,0.0005,120]
[322578469,1713081063255,-500.0,0.0005,120]
[322578470,1713081063264,-602.72158851,0.0005,30]
[322578471,1713081063274,-501.37002121,0.0005,2]
[322578472,1713081063283,-150.0,0.0005,27]
[322578473,1713081063292,-224.79,0.0005,120]
[322578474,1713081063302,-1412.05502882,0.0005,30]
[322578475,1713081063311,-2232.22624316,0.0005,6]
[322578476,1713081063320,-173.15,0.0005,2]
[322578477,1713081063330,-18047.34544368,0.0005,3]
[322578478,1713081063341,-160.4,0.0005,120]
[322578479,1713081063350,-20000.0,0.0005,120]
[322578480,1713081063360,-30000.0,0.0005,120]
[322578481,1713081063369,-25248.30692184,0.0005,120]
[322578482,1713081063383,-155.0,0.0005,30]
[322578483,1713081063392,-1000.0,0.0005,120]
[322578484,1713081063402,-1000.0,0.0005,120]
[322578485,1713081063411,-14009.0,0.0005,14]
[322578486,1713081063420,-153.604901,0.0005,120]
[322578487,1713081063430,-151.0,0.0005,120]
[322578488,1713081063439,-151.0,0.0005,120]
[322578489,1713081063449,-151.883449,0.0005,120]
[322578490,1713081063458,-151.0,0.0005,120]
[322578491,1713081063467,-151.0,0.0005,120]
[322578492,1713081063478,-200.0,0.0005,27]
[322578493,1713081063487,-1000.0,0.0005,120]
[322578494,1713081063497,-1000.0,0.0005,120]
[322578495,1713081063506,-150.0,0.0005,10]
[322578496,1713081063516,-3000.0,0.0005,120]
[322578497,1713081063526,-19580.0,0.0005,120]
[322578498,1713081063535,-150.0,0.00050001,120]
[322578499,1713081063545,-152.61441782,0.00050025,60]
[322578500,1713081063554,-163.77284282,0.00050043,60]
[322578501,1713081063564,-166.84086597,0.00050043,60]
[322578502,1713081063574,-568.47,0.00050055,60]
[322578503,1713081063583,-568.47,0.00050055,60]
[322578504,1713081063595,-318.8130496,0.00050055,60]
[322578505,1713081063606,-203.0,0.0005006,30]
[322578506,1713081063615,-487.27,0.00050085,2]
[322578507,1713081063626,-3000.0,0.00050136,120]
[322578508,1713081063637,-318.8130496,0.0005014,60]
[322578509,1713081063648,-256.13487886,0.00050149,60]
[322578510,1713081063660,-171.20687448,0.00050168,60]
[322578511,1713081063670,-154.99801969,0.00050174,60]
[322578512,1713081063681,-157.041513,0.00050198,87]
[322578513,1713081063691,-154.99801969,0.00050202,60]
[322578514,1713081063700,-600.0,0.00050208,90]
[322578515,1713081063710,-171.20687448,0.00050214,60]
[322578516,1713081063720,-171.20687448,0.00050225,60]
[322578517,1713081063729,-256.13487886,0.00050236,60]
[322578518,1713081063739,-155.72346712,0.00050243,60]
[322578519,1713081063749,-3537.0,0.00050255,43]
[322578520,1713081063759,-3000.0,0.00050273,120]
[322578521,1713081063768,-242.71617137,0.00050278,60]
[322578522,1713081063779,-639.0,0.00050298,30]
[322578523,1713081063788,-569.0,0.00050298,30]
[322578524,1713081063802,-153.51371593,0.00050304,26]
[322578525,1713081063812,-568.47,0.00050328,60]
[322578526,1713081063822,-568.47,0.00050328,60]
[322578527,1713081063832,-154.99801969,0.0005035,60]
[322578528,1713081063845,-176.79003435,0.00050374,60]
[322578529,1713081063855,-318.8130496,0.00050401,60]
[322578530,1713081063865,-3000.0,0.0005041,120]
[322578531,1713081063874,-258.9,0.00050411,120]
[322578532,1713081063884,-153.57672703,0.00050414,60]
[322578533,1713081063894,-318.8130496,0.00050414,60]
[322578534,1713081063904,-289.82932389,0.00050455,60]
[322578535,1713081063914,-252.94,0.00050469,2]
[322578536,1713081063924,-171.20687448,0.00050476,60]
[322578537,1713081063934,-500.0,0.00050482,90]
[322578538,1713081063944,-157.041507,0.00050498,91]
[322578539,1713081063954,-242.71617137,0.00050523,60]
[322578540,1713081063963,-1766.37387071,0.00050525,86]
[322578541,1713081063973,-164.28918671,0.00050525,2]
[322578542,1713081063984,-3000.0,0.00050547,120]
[322578543,1713081063994,-157.64176833,0.00050597,60]
[322578544,1713081064004,-568.47,0.00050601,60]
[322578545,1713081064014,-568.47,0.00050601,60]
[322578546,1713081064024,-150.0,0.0005061,14]
[322578547,1713081064033,-151.0,0.00050625,120]
[322578548,1713081064044,-776.036863,0.00050625,7]
[322578549,1713081064054,-151.0,0.00050625,120]
[322578550,1713081064064,-348.349858,0.00050625,120]
[322578551,1713081064073,-776.036863,0.00050625,7]
[322578552,1713081064083,-151.0,0.00050625,120]
[322578553,1713081064099,-348.349858,0.00050625,120]
[322578554,1713081064110,-225.265027,0.00050625,120]
[322578555,1713081064119,-225.265027,0.00050625,120]
[322578556,1713081064129,-151.0,0.00050625,120]
[322578557,1713081064139,-151.0,0.00050625,120]
[322578558,1713081064149,-151.0,0.00050625,120]
[322578559,1713081064158,-229.426931,0.00050625,30]
[322578560,1713081064168,-151.0,0.00050625,120]
[322578561,1713081064177,-151.0,0.00050625,120]
[322578562,1713081064187,-229.426931,0.00050625,30]
[322578563,1713081064197,-151.0,0.00050625,120]
[322578564,1713081064207,-151.0,0.00050625,120]
[322578565,1713081064217,-95677.948,0.00050625,120]
[322578566,1713081064227,-95677.948,0.00050625,120]
[322578567,1713081064237,-95677.949,0.00050625,120]
[322578568,1713081064247,-95677.948,0.00050625,120]
[322578569,1713081064256,-95677.949,0.00050625,120]
[322578570,1713081064266,-177.952692,0.00050625,120]
[322578571,1713081064275,-177.952692,0.00050625,120]
[322578572,1713081064286,-153.194464,0.00050625,120]
[322578573,1713081064297,-166.361054,0.00050625,120]
[322578574,1713081064307,-151.0,0.00050625,120]
[322578575,1713081064316,-151.0,0.00050625,120]
[322578576,1713081064326,-151.0,0.00050625,120]
[322578577,1713081064335,-151.0,0.00050625,120]
[322578578,1713081064347,-264.060189,0.00050625,120]